bitfinex/quotes_ETHUSD_20251218
["timestamp","ask_amount","ask_price","bid_price","bid_amount"]
[1766078090426,0.81298023,2859.7,2857.6,0.623]
[1766078090427,0.3486,2859.7,2857.6,0.623]
[1766078090595,0.623,2859.5,2857.6,0.623]
[1766078090794,0.623,2859.4,2857.9,7.81492184]
[1766078091105,0.623,2859.4,2857.6,0.623]
[1766078091290,0.71031794,2859.4,2857.7,0.18688724]
[1766078091490,0.08731794,2859.2,2857.7,0.18688724]
[1766078091722,0.71031794,2859.4,2857.7,0.18688724]
[1766078091925,0.71031794,2859.4,2857.8,3.49919518]
[1766078092142,0.08731794,2859.2,2857.7,3.68618934]
[1766078092347,0.3486,2859.5,2857.8,0.43091893]
[1766078092548,0.3486,2859.5,2857.8,0.89529916]
[1766078092844,0.08731794,2859.7,2857.8,0.89529916]
[1766078093032,0.623,2859.6,2857.8,0.89529916]
[1766078093611,0.3496,2861.0,2859.2,7.81492184]
[1766078093814,0.08831794,2861.0,2859.3,1.25719015]
[1766078094040,0.08731794,2860.8,2859.3,4.27884962]
[1766078094258,0.001,2861.0,2859.3,7.77620911]
[1766078094425,0.001,2861.0,2859.7,7.81492184]
[1766078094621,0.623,2861.4,2859.8,0.46438023]
[1766078094957,0.71031794,2861.3,2859.9,0.89023021]
[1766078095121,0.71031794,2861.3,2859.4,0.46438023]
[1766078095312,0.08731794,2861.1,2859.4,0.46438023]
[1766078095646,0.623,2861.3,2859.7,0.46438023]
[1766078095813,0.623,2861.3,2859.3,11.8965686]
[1766078095814,7.8016,2861.2,2859.4,0.46438023]
[1766078096011,0.001,2859.8,2859.3,0.78149218]
[1766078096247,0.623,2860.4,2859.4,3.49723207]
[1766078096640,0.623,2860.4,2859.1,3.49752859]
[1766078096837,0.3486,2860.7,2858.9,0.623]
[1766078097037,0.623,2860.6,2858.9,0.623]
[1766078097242,0.3486,2860.7,2858.9,4.12076465]
[1766078097546,0.08731794,2861.1,2859.0,0.44705373]
[1766078097851,0.08731794,2861.1,2858.2,0.08731794]
[1766078097852,0.43591794,2861.1,2859.4,6.99447436]
[1766078098018,0.623,2861.0,2859.4,0.46438023]
[1766078098215,0.08731794,2860.9,2859.2,3.49744417]
[1766078098420,0.08731794,2860.9,2859.2,4.12044417]
[1766078098647,0.08731794,2860.9,2858.0,3.58615405]
[1766078098648,0.43591794,2860.5,2858.7,3.49805852]
[1766078098847,0.08731794,2860.3,2858.7,0.97280585]
[1766078099048,0.623,2860.2,2858.7,0.623]
[1766078099649,0.43591794,2860.5,2859.0,3.49771238]
[1766078099850,0.623,2860.4,2858.7,0.623]
[1766078100023,0.623,2860.4,2858.8,6.99586043]
[1766078100223,0.08731794,2859.9,2857.8,0.43091893]
[1766078100533,0.3486,2858.9,2856.9,0.003]
[1766078100746,0.3408,2859.6,2857.9,3.49898218]
[1766078100928,0.3408,2859.6,2857.2,3.49988516]
[1766078100929,0.08731794,2859.1,2857.6,4.12231913]
[1766078101253,0.08731794,2860.5,2858.7,10.49426729]
[1766078101453,21.7406,2860.3,2858.8,7.81492184]
[1766078101655,0.08731794,2859.5,2856.9,0.003]
[1766078101861,0.08731794,2859.8,2858.4,0.0594]
[1766078101862,0.623,2859.4,2858.4,0.0594]
[1766078102018,0.08731794,2859.1,2858.1,0.0594]
[1766078102222,0.08731794,2859.1,2857.0,0.623]
[1766078102223,0.08731794,2858.9,2857.8,0.0594]
[1766078102455,0.08731794,2858.0,2856.9,0.0624]
[1766078102660,0.623,2857.9,2857.0,0.0594]
[1766078102964,0.623,2857.8,2856.9,0.0624]
[1766078103256,0.08731794,2857.7,2856.9,0.003]
[1766078103459,0.08731794,2857.9,2856.9,0.003]
[1766078103632,0.08731794,2857.5,2856.9,0.003]
[1766078103955,0.08731794,2857.5,2855.6,7.81692184]
[1766078103956,0.08731794,2857.2,2855.6,11.31873298]
[1766078104121,0.08731794,2857.3,2855.6,18.32251502]
[1766078104421,0.08731794,2857.0,2855.6,3.50385513]
[1766078104623,0.623,2857.0,2855.6,3.50385513]
[1766078104931,0.08731794,2857.2,2855.6,0.002]
[1766078104932,0.08731794,2856.9,2855.6,0.002]
[1766078105257,0.08731794,2856.6,2855.7,0.002]
[1766078105457,0.08731794,2856.2,2855.7,0.002]
[1766078105626,0.08731794,2856.4,2855.7,0.002]
[1766078105820,1.7662666,2857.3,2855.7,0.002]
[1766078105821,0.3408,2857.1,2855.7,0.002]
[1766078106121,0.623,2856.9,2855.9,3.50152316]
[1766078106451,0.623,2857.0,2855.8,3.50162965]
[1766078106656,0.623,2856.9,2855.7,0.46638023]
[1766078106955,0.623,2856.9,2855.7,0.002]
[1766078106956,0.08731794,2856.4,2855.7,0.002]
[1766078107157,0.08731794,2856.3,2855.7,0.002]
[1766078107368,0.08731794,2855.9,2855.4,0.002]
[1766078107670,0.08731794,2855.8,2855.4,0.002]
[1766078107833,0.08731794,2855.6,2854.6,0.002]
[1766078108029,0.08731794,2855.4,2854.6,0.002]
[1766078108339,0.42811794,2855.6,2854.6,0.002]
[1766078108340,0.3408,2855.6,2854.6,0.002]
[1766078108540,0.623,2855.5,2854.6,0.002]
[1766078108743,0.623,2855.8,2854.6,0.002]
[1766078109047,0.08731794,2855.3,2854.6,0.002]
[1766078109282,0.08731794,2855.3,2852.9,0.1]
[1766078109283,21.82791794,2855.2,2852.9,0.1]
[1766078109560,0.3408,2854.7,2852.9,3.60519537]
[1766078109726,0.08731794,2854.6,2852.9,0.1]
[1766078109930,7.95601794,2855.2,2853.5,0.46438023]
[1766078110125,7.95601794,2855.2,2853.5,0.015]
[1766078110126,0.08731794,2855.0,2853.5,0.015]
[1766078110364,0.08731794,2854.4,2853.0,11.44414848]
[1766078110550,0.08731794,2854.6,2853.0,11.44414848]
[1766078110551,0.623,2854.3,2853.0,3.59331956]
[1766078110927,0.80433359,2855.3,2853.8,0.015]
[1766078111085,0.08731794,2856.5,2854.3,0.015]
[1766078111386,0.623,2856.6,2855.0,7.83582892]
[1766078111566,0.08731794,2856.2,2854.8,0.015]
[1766078112062,0.623,2856.4,2855.2,7.00476322]
[1766078112268,10.08731794,2857.3,2855.3,0.46438023]
[1766078112562,0.08731794,2856.6,2855.1,3.50247727]
[1766078112778,0.08731794,2856.4,2854.6,0.46438023]
[1766078112935,0.08731794,2856.4,2853.7,3.50416652]
[1766078112936,0.08731794,2856.2,2853.7,3.50416652]
[1766078113137,0.08731794,2856.0,2854.7,3.50296893]
[1766078113350,0.08731794,2856.2,2853.9,3.50390174]
[1766078113564,0.71031794,2856.2,2854.9,3.50274368]
[1766078113734,0.71031794,2856.2,2855.1,3.50250429]
[1766078113735,0.623,2856.2,2855.1,3.50250429]
[1766078113934,0.623,2856.2,2854.8,3.50280273]
[1766078113935,0.623,2856.2,2855.0,3.50262697]
[1766078114147,0.623,2856.2,2855.0,0.46438023]
[1766078114697,0.62,2856.2,2854.6,3.50302961]
[1766078114848,0.62,2856.2,2854.8,3.502751]
[1766078115033,0.08731794,2856.1,2854.7,3.50299264]
[1766078115234,0.08731794,2856.1,2854.2,0.46438023]
[1766078115570,0.08731794,2856.1,2853.1,1.87866281]
[1766078115571,0.45551794,2854.6,2853.8,0.002]
[1766078115735,0.45551794,2854.6,2852.9,0.1]
[1766078115736,0.3682,2854.0,2852.9,0.1]
[1766078115937,0.623,2854.1,2852.9,0.1]
[1766078116372,0.623,2854.1,2852.9,3.60519259]
[1766078116574,7.39761794,2854.4,2852.9,3.60519259]
[1766078116575,0.623,2854.5,2852.9,12.06401674]
[1766078116776,0.08731794,2854.4,2853.0,7.0983952]
[1766078116978,0.08731794,2853.9,2853.0,3.59331956]
[1766078117275,0.08731794,2853.4,2853.0,3.59331956]
[1766078117601,0.08731794,2853.6,2852.0,0.1]
[1766078117602,0.08731794,2852.7,2852.0,0.1]
[1766078117741,0.08731794,2852.5,2852.0,0.1]
[1766078118501,0.08731794,2852.3,2852.0,0.1]
[1766078118707,0.08731794,2852.3,2851.0,0.0063296]
[1766078118708,0.08731794,2851.9,2851.0,0.0063296]
[1766078118874,0.3682,2851.1,2850.3,0.16315951]
[1766078119069,0.3682,2851.1,2848.5,0.08731794]
[1766078119070,0.3682,2850.0,2848.3,7.83582892]
[1766078119374,0.3682,2850.0,2847.9,0.8735]
[1766078119375,0.45551794,2849.5,2848.4,3.59674287]
[1766078119580,0.08731794,2849.0,2847.3,0.8735]
[1766078119797,1e-08,2848.7,2847.4,0.0338713]
[1766078120002,0.623,2849.3,2847.9,7.02271848]
[1766078120272,0.03249997,2849.2,2849.0,0.08731794]
[1766078120471,10.0,2851.0,2848.4,0.08731794]
[1766078120472,22.1088,2850.6,2848.4,0.08731794]
[1766078120673,0.3682,2850.5,2848.6,7.92314686]
[1766078121101,0.3682,2850.2,2848.7,0.623]
[1766078121309,0.3682,2850.1,2848.7,0.623]
[1766078121509,0.3682,2849.9,2848.5,0.623]
[1766078121809,0.3682,2849.4,2847.5,7.83582892]
[1766078122007,0.3682,2849.1,2847.6,0.78358289]
[1766078122242,0.3682,2849.1,2847.7,3.51157179]
[1766078122381,7.3103,2850.0,2848.1,7.83582892]
[1766078122572,0.3682,2850.1,2848.2,0.004]
[1766078122909,0.45551794,2850.2,2847.9,0.004]
[1766078123093,0.08731794,2849.6,2848.3,7.83582892]
[1766078123295,0.08731794,2849.6,2847.2,0.08731794]
[1766078123296,0.08731794,2849.2,2847.2,0.004]
[1766078123471,0.08731794,2848.6,2847.2,7.83582892]
[1766078123677,0.08731794,2848.1,2846.7,8.45982892]
[1766078123872,10.08731794,2848.6,2846.7,8.45982892]
[1766078124179,0.08731794,2848.0,2846.7,8.04401471]
[1766078124380,0.08731794,2848.3,2846.8,0.0913]
[1766078124574,0.08731794,2847.5,2845.5,1.78815854]
[1766078124797,0.08731794,2847.4,2845.7,0.4752]
[1766078125001,0.08731794,2847.3,2845.8,7.83582892]
[1766078125309,0.08731794,2848.3,2846.4,3.9884085]
[1766078125509,0.08731794,2848.3,2845.6,0.55123321]
[1766078125510,0.08731794,2847.3,2845.6,0.55123321]
[1766078125696,0.08731794,2847.1,2845.7,4.13806213]
[1766078125897,0.08731794,2846.9,2845.5,0.0992]
[1766078126075,7.3103,2845.8,2845.4,3.72417355]
[1766078126283,0.08731794,2846.4,2844.2,7.83582892]
[1766078126587,0.08731794,2846.3,2844.9,7.83582892]
[1766078126818,0.08731794,2847.0,2845.4,7.02884885]
[1766078127026,0.08731794,2847.3,2845.6,0.46438023]
[1766078127306,0.624,2847.5,2846.1,0.46438023]
[1766078127510,0.08731794,2847.4,2846.0,0.624]
[1766078127676,0.45551794,2847.9,2846.2,0.46438023]
[1766078127881,0.45551794,2848.5,2846.7,0.46438023]
[1766078128087,0.45551794,2849.2,2847.4,0.46438023]
[1766078128286,0.08731794,2849.5,2847.7,4.28778023]
[1766078128707,0.08731794,2849.5,2847.2,3.51222253]
[1766078128708,0.08731794,2848.7,2847.2,3.51222253]
[1766078128889,0.001,2849.7,2848.3,7.83582892]
[1766078129078,0.001,2849.7,2846.7,7.83582892]
[1766078129079,0.08731794,2848.4,2846.7,7.83582892]
[1766078129409,0.3682,2848.4,2847.1,3.51233752]
[1766078129612,0.08731794,2848.5,2847.0,3.51236318]
[1766078129909,0.08731794,2848.3,2846.8,0.46438023]
[1766078130109,0.08731794,2848.0,2846.8,7.02543206]
[1766078130405,0.45551794,2848.5,2846.8,8.95629816]
[1766078130612,0.71131794,2848.8,2847.1,7.83582892]
[1766078130838,7.6795,2849.7,2847.8,0.46438023]
[1766078130983,0.08731794,2849.5,2848.2,4.28778023]
[1766078131176,0.001,2849.7,2848.2,4.28778023]
[1766078131177,0.001,2849.7,2848.5,3.8234]
[1766078131385,0.08731794,2849.8,2848.6,4.4464]
[1766078131622,0.08731794,2849.8,2847.2,3.8224]
[1766078131623,0.08731794,2848.9,2847.2,3.8224]
[1766078131804,0.08731794,2847.6,2845.9,7.83582892]
[1766078132128,0.08731794,2847.8,2845.4,0.002]
[1766078132129,0.08731794,2847.8,2846.2,3.8224]
[1766078132291,0.08731794,2848.0,2846.6,3.8224]
[1766078132478,0.08731794,2847.6,2846.6,3.8224]
[1766078132678,0.08731794,2847.4,2846.7,0.624]
[1766078132878,0.08731794,2847.7,2846.1,7.02715996]
[1766078133081,0.08731794,2847.1,2846.2,0.624]
[1766078133317,0.08731794,2848.1,2846.4,7.83582892]
[1766078133478,0.08731794,2847.7,2846.5,3.8224]
[1766078133678,0.08731794,2847.9,2846.2,0.795998]
[1766078133679,0.08731794,2847.5,2846.2,0.795998]
[1766078133892,0.08731794,2847.9,2846.3,0.624]
[1766078134096,0.08731794,2848.1,2846.6,3.51296283]
[1766078134294,0.08731794,2847.6,2846.2,0.795998]
[1766078134515,0.08731794,2846.8,2845.8,3.8224]
[1766078134717,0.08731794,2847.4,2846.5,3.51306669]
[1766078134882,0.08731794,2847.0,2845.4,11.66022892]
[1766078135084,0.3682,2847.5,2845.8,3.8224]
[1766078135404,0.08731794,2846.3,2845.4,0.002]
[1766078135610,0.08731794,2846.1,2845.4,0.002]
[1766078135915,0.08731794,2846.0,2845.4,0.002]
[1766078136281,0.08731794,2846.0,2843.9,3.8224]
[1766078136282,0.45551794,2845.8,2843.9,3.8224]
[1766078136494,0.08731794,2845.4,2844.1,3.8224]
[1766078136695,0.08731794,2845.4,2844.2,0.626]
[1766078136924,0.08731794,2845.2,2844.1,3.8224]
[1766078137121,0.08731794,2845.2,2843.6,3.8224]
[1766078137122,0.08731794,2844.8,2843.6,3.8224]
[1766078137324,0.08731794,2844.8,2842.9,0.16496762]
[1766078137325,0.08731794,2843.6,2842.9,0.16496762]
[1766078137619,0.08731794,2843.2,2842.0,4.4494]
[1766078137818,0.08621418,2843.2,2842.1,0.44494]
[1766078138119,0.3682,2844.4,2842.5,7.83582892]
[1766078138419,7.92314686,2845.6,2843.2,0.46438023]
[1766078138420,0.08731794,2844.7,2843.2,0.46438023]
[1766078138716,0.08731794,2844.6,2843.3,0.627]
[1766078138904,0.08731794,2844.3,2843.3,0.627]
[1766078139312,7.39761794,2845.8,2843.9,3.8224]
[1766078139517,7.39761794,2845.8,2843.8,0.46438023]
[1766078139518,0.08731794,2845.5,2844.1,3.8224]
[1766078139844,0.08731794,2845.8,2843.1,3.8224]
[1766078139845,0.08731794,2844.3,2843.1,3.8224]
[1766078140008,0.08731794,2844.3,2843.2,0.627]
[1766078140009,0.08731794,2843.9,2843.2,0.627]
[1766078140216,0.08731794,2843.5,2841.6,3.78960055]
[1766078140427,0.08731794,2844.2,2842.1,3.8224]
[1766078140590,0.3682,2844.3,2842.6,3.8224]
[1766078140937,0.08731794,2844.6,2842.9,0.46438023]
[1766078141089,0.49282194,2845.2,2843.3,0.46438023]
[1766078141285,7.3103,2845.6,2843.9,3.8224]
[1766078141604,0.08731794,2846.6,2844.0,1.05667802]
[1766078141605,0.08731794,2845.3,2844.0,1.05667802]
[1766078141924,0.08731794,2845.1,2844.1,0.628]
[1766078142121,0.08731794,2844.9,2843.8,0.628]
[1766078142286,0.3682,2845.2,2843.8,7.66083198]
[1766078142489,0.08731794,2845.6,2843.8,14.99965366]
[1766078142727,0.45491794,2845.8,2843.8,14.99965366]
[1766078142728,0.45491794,2845.8,2844.1,3.8224]
[1766078143028,0.08731794,2846.7,2844.8,3.8224]
[1766078143210,0.45491794,2846.9,2845.0,3.8224]
[1766078143529,0.45491794,2846.9,2845.1,4.28678023]
[1766078143530,0.3676,2846.9,2845.1,4.28678023]
[1766078143722,0.3676,2847.6,2846.0,11.65822892]
[1766078143885,0.3676,2847.6,2846.1,0.628]
[1766078144221,0.44683578,2847.9,2846.2,7.02691306]
[1766078144440,0.45491794,2848.4,2846.6,3.8224]
[1766078144592,0.3676,2848.4,2846.6,3.8224]
[1766078144802,0.3676,2848.4,2846.3,0.627]
[1766078144803,0.45491794,2848.4,2846.7,11.65822892]
[1766078145008,0.45491794,2848.4,2846.7,4.4494]
[1766078145320,0.08731794,2848.2,2846.7,4.4494]
[1766078145520,0.08731794,2848.2,2846.3,0.46438023]
[1766078145521,0.45491794,2848.1,2846.3,0.46438023]
[1766078145720,0.45491794,2848.1,2846.4,0.627]
[1766078145922,0.45491794,2848.1,2846.4,3.8224]
[1766078146223,0.3676,2848.1,2846.6,7.02592566]
[1766078146427,7.2688,2847.7,2845.3,3.51452358]
[1766078146615,0.45491794,2847.6,2845.6,4.28678023]
[1766078146814,0.45491794,2847.6,2845.4,3.51435178]
[1766078146815,0.86042194,2846.9,2845.4,3.51435178]
[1766078147033,0.3676,2846.9,2845.5,0.626]
[1766078147216,0.08731794,2846.7,2845.5,0.626]
[1766078147420,7.2688,2847.1,2845.5,0.626]
[1766078147620,0.405504,2846.2,2844.1,7.03210154]
[1766078147815,0.3676,2846.1,2844.2,4.4484]
[1766078148015,0.405504,2846.2,2844.5,3.8224]
[1766078148226,7.35611794,2846.2,2844.5,3.8224]
[1766078148426,7.6364,2846.0,2844.3,0.627]
[1766078148641,0.5,2846.0,2844.6,0.46438023]
[1766078148805,0.5,2846.0,2844.7,4.4494]
[1766078149131,0.5,2846.0,2844.7,0.627]
[1766078149306,0.5,2846.0,2844.7,8.46282892]
[1766078149503,0.5,2846.0,2844.7,5.3717882]
[1766078149726,0.5,2846.0,2844.8,0.626]
[1766078149926,0.08731794,2845.6,2843.6,3.8224]
[1766078150134,7.2688,2845.8,2842.7,10.08731794]
[1766078150135,0.45491794,2845.7,2843.9,7.33865037]
[1766078150320,0.45491794,2845.7,2843.8,7.03284336]
[1766078150321,0.08731794,2845.7,2844.0,3.8224]
[1766078150522,0.08731794,2845.7,2844.1,0.627]
[1766078150737,0.08731794,2845.7,2843.3,3.51694167]
[1766078150738,0.08731794,2844.8,2843.3,0.46438023]
[1766078150906,1.11194359,2844.8,2843.4,0.627]
[1766078151105,0.08731794,2845.2,2843.4,0.627]
[1766078151106,0.08731794,2845.2,2843.7,3.51654534]
[1766078151305,0.08731794,2845.4,2843.7,3.51654534]
[1766078151557,0.45491794,2845.4,2843.7,3.51654534]
[1766078151712,0.45491794,2845.4,2843.8,0.627]
[1766078151713,0.45491794,2845.0,2843.8,0.627]
[1766078152042,0.3676,2845.0,2843.8,0.627]
[1766078152208,0.3676,2844.7,2843.6,0.627]
[1766078152408,1.22728973,2844.7,2843.7,0.627]
[1766078152652,0.08731794,2844.3,2843.0,0.002]
[1766078152815,0.3676,2844.3,2843.4,0.627]
[1766078153139,10.0,2844.8,2843.4,0.627]
[1766078153140,0.3676,2844.9,2843.4,4.4494]
[1766078153458,0.45491794,2845.8,2844.2,3.8224]
[1766078153608,0.45491794,2845.8,2844.3,0.627]
[1766078153609,0.3676,2845.8,2844.3,0.627]
[1766078154008,7.2688,2846.1,2844.3,4.4494]
[1766078154255,0.3676,2846.4,2844.5,3.8224]
[1766078154544,7.2688,2846.7,2844.7,3.8224]
[1766078154843,0.08731794,2847.4,2844.7,3.8224]
[1766078154844,0.3676,2847.4,2845.1,3.8224]
[1766078155042,0.3676,2847.4,2845.0,0.46438023]
[1766078155043,0.3676,2848.2,2846.3,3.8224]
[1766078155243,0.3676,2848.2,2846.4,0.627]
[1766078155244,0.08731794,2847.5,2846.4,0.627]
[1766078155447,0.08731794,2848.0,2846.4,0.627]
[1766078155621,0.08731794,2847.9,2846.5,3.8224]
[1766078155944,0.08731794,2846.3,2845.2,0.627]
[1766078156145,7.35611794,2847.9,2845.7,3.8224]
[1766078156444,0.3676,2848.3,2846.1,3.8224]
[1766078156643,0.08731794,2847.8,2846.1,3.8224]
[1766078156850,0.08731794,2847.4,2846.2,3.8224]
[1766078157051,0.08731794,2847.7,2846.3,0.628]
[1766078157364,0.45491794,2846.9,2845.2,3.51459346]
[1766078157525,2.21955179,2846.8,2845.4,3.51444013]
[1766078157709,7.611,2846.6,2845.3,0.628]
[1766078157909,7.611,2846.6,2844.6,3.51537873]
[1766078157910,0.3676,2846.1,2844.1,3.8224]
[1766078158233,0.08731794,2844.3,2843.5,0.002]
[1766078158587,0.08731794,2843.9,2843.5,0.002]
[1766078158852,0.08731794,2844.1,2843.0,0.002]
[1766078158853,0.45491794,2843.7,2843.0,0.002]
[1766078159062,0.08731794,2843.5,2843.0,0.002]
[1766078159225,0.45491794,2843.7,2843.0,0.002]
[1766078159412,0.08731794,2843.9,2843.0,0.002]
[1766078159618,0.3676,2844.2,2843.1,0.628]
[1766078159619,0.08731794,2844.2,2843.1,0.628]
[1766078159810,0.45491794,2844.4,2843.1,0.628]
[1766078160020,0.08731794,2844.0,2843.1,0.628]
[1766078160229,0.08731794,2844.0,2843.0,0.002]
[1766078160423,0.08731794,2843.6,2843.0,0.002]
[1766078160657,7.72371794,2844.7,2843.0,0.002]
[1766078160815,0.08731794,2845.2,2843.3,3.8244]
[1766078161020,13.8076,2844.4,2843.4,0.628]
[1766078161325,0.08731794,2844.7,2843.4,0.628]
[1766078161512,0.3676,2845.0,2843.4,0.628]
[1766078161848,0.08731794,2844.2,2843.5,0.628]
[1766078162034,0.08731794,2842.8,2841.2,16.49101632]
[1766078162216,0.3676,2841.7,2840.9,0.003]
[1766078162416,21.7406,2841.1,2839.7,0.03518499]
[1766078162645,0.08731794,2840.1,2839.1,0.629]
[1766078162821,0.08731794,2841.1,2839.6,3.52162276]
[1766078163143,0.08731794,2840.5,2839.2,0.629]
[1766078163347,0.08731794,2840.6,2839.6,3.52162276]
[1766078163773,0.08731794,2840.5,2839.5,3.52173981]
[1766078163974,0.08731794,2839.7,2838.6,3.52274181]
[1766078164169,0.08731794,2839.7,2837.8,7.37882799]
[1766078164170,0.08731794,2838.9,2838.1,3.52348402]
[1766078164400,0.08731794,2839.7,2838.1,10.98570046]
[1766078164606,7.7971,2840.3,2838.2,0.629]
[1766078164767,7.7971,2840.3,2838.1,10.98570046]
[1766078164768,0.08731794,2840.0,2838.1,23.6562161]
[1766078164966,0.08731794,2840.4,2838.2,1.12861382]
[1766078165174,0.08731794,2840.4,2838.2,0.03523359]
[1766078165175,0.08731794,2840.0,2838.2,0.03523359]
[1766078165374,0.08731794,2840.0,2838.2,1.45444181]
[1766078165375,0.08731794,2839.7,2838.2,1.45444181]
[1766078165592,0.08731794,2840.6,2838.3,9.14703162]
[1766078165792,0.08731794,2840.2,2838.4,2.9554]
[1766078165967,0.43601794,2840.6,2838.5,2.9554]
[1766078166164,0.08731794,2840.4,2838.8,10.56784554]
[1766078166411,0.08731794,2840.2,2838.9,1.56760281]
[1766078166576,0.08731794,2840.1,2838.9,2.19860281]
[1766078166790,7.7971,2840.8,2838.9,2.19860281]
[1766078166791,0.08731794,2842.5,2839.2,2.9554]
[1766078167093,0.3487,2842.8,2840.8,2.9554]
[1766078167263,1.16328,2842.8,2841.0,0.46438023]
[1766078167476,1.16328,2842.8,2841.1,0.46438023]
[1766078167676,0.3487,2843.4,2841.3,0.46438023]
[1766078167900,9.14703162,2844.4,2841.1,0.46438023]
[1766078167901,10.0,2844.0,2841.8,0.46438023]
[1766078168108,0.3487,2843.2,2840.9,0.34197802]
[1766078168409,0.3487,2843.2,2839.0,11.78947908]
[1766078168410,0.08731794,2840.8,2839.3,2.9554]
[1766078168623,0.08731794,2841.2,2839.4,0.638]
[1766078168917,0.08731794,2841.2,2838.9,10.5674733]
[1766078168918,0.08731794,2840.3,2838.9,0.638]
[1766078169117,0.08731794,2840.5,2838.9,2.97140424]
[1766078169316,0.08731794,2840.5,2837.8,3.94234549]
[1766078169317,0.08731794,2839.8,2838.3,2.9554]
[1766078169611,0.08731794,2839.4,2837.8,3.85502755]
[1766078169775,0.08731794,2840.0,2837.8,3.85502755]
[1766078169776,0.08731794,2840.0,2838.4,3.52298765]
[1766078169984,0.08731794,2839.6,2838.4,3.52305637]
[1766078170180,7.88441794,2840.0,2838.0,6.47894642]
[1766078170181,10.3487,2841.0,2838.6,10.56859014]
[1766078170406,0.08731794,2840.1,2838.8,0.46438023]
[1766078170580,0.08731794,2840.1,2838.7,2.9554]
[1766078170581,0.08731794,2839.9,2838.0,2.9554]
[1766078170910,0.08731794,2839.9,2837.9,3.90912076]
[1766078170911,0.08731794,2839.3,2838.1,1.32545208]
[1766078171110,0.43601794,2839.7,2838.5,3.52293254]
[1766078171313,0.43601794,2840.4,2838.9,0.002]
[1766078171492,0.08731794,2839.9,2838.9,0.002]
[1766078171695,0.08731794,2839.9,2837.9,0.38550276]
[1766078171696,0.08731794,2839.0,2837.9,0.38550276]
[1766078171895,0.08731794,2838.9,2837.8,4.49402755]
[1766078172107,0.08731794,2839.2,2837.8,4.49402755]
[1766078172305,0.08731794,2839.8,2838.1,2.9574]
[1766078172616,0.08731794,2839.8,2837.8,3.85502755]
[1766078172617,0.08731794,2839.0,2837.8,3.85502755]
[1766078172802,0.08731794,2839.0,2837.9,7.68544184]
[1766078173003,0.08731794,2839.0,2837.9,4.16170951]
[1766078173217,21.7406,2839.2,2837.8,3.85502755]
[1766078173386,0.08731794,2840.1,2838.1,2.9574]
[1766078173721,0.08731794,2840.0,2838.4,2.9574]
[1766078173944,0.08731794,2840.2,2838.5,0.46438023]
[1766078174090,0.08731794,2840.3,2838.6,2.9574]
[1766078174290,7.76661794,2841.1,2839.2,3.42178023]
[1766078174291,0.08731794,2841.1,2839.2,3.42178023]
[1766078174586,0.08731794,2841.4,2839.5,0.46438023]
[1766078174791,0.08731794,2842.3,2840.1,9.14703162]
[1766078175004,0.08731794,2841.2,2839.6,2.9574]
[1766078175231,0.08731794,2841.0,2839.7,0.639]
[1766078175536,0.08731794,2841.2,2838.7,0.03517117]
[1766078175537,0.08731794,2840.9,2839.3,3.5964]
[1766078175702,7.42621794,2841.4,2839.5,2.9574]
[1766078175904,0.08731794,2840.5,2839.5,2.9574]
[1766078176104,0.08731794,2841.1,2839.6,0.639]
[1766078176303,0.08731794,2841.1,2839.2,0.46438023]
[1766078176304,0.08731794,2840.6,2839.4,3.52176936]
[1766078176535,0.08731794,2840.4,2839.4,4.16086552]
[1766078176803,0.08731794,2840.6,2839.5,0.639]
[1766078177003,0.08731794,2840.5,2839.5,0.639]
[1766078177201,0.08731794,2840.9,2839.6,3.52159943]
[1766078177428,0.08731794,2840.9,2839.2,3.52206278]
[1766078177429,0.08731794,2840.7,2839.2,2.9574]
[1766078177630,0.08731794,2841.1,2839.2,2.9574]
[1766078177631,0.08731794,2840.6,2839.6,3.52162276]
[1766078177832,0.08731794,2840.4,2839.2,3.25314]
[1766078178062,0.08731794,2840.4,2837.8,3.85502755]
[1766078178063,0.08731794,2840.0,2838.6,2.9574]
[1766078178341,0.08731794,2840.0,2837.8,3.85502755]
[1766078178342,0.08731794,2840.4,2838.8,2.9574]
[1766078178680,0.08731794,2840.6,2838.8,2.9574]
[1766078178681,0.3404,2841.1,2839.0,3.42178023]
[1766078178840,0.08731794,2840.9,2839.0,3.42178023]
[1766078179008,7.42621794,2841.5,2839.3,2.9574]
[1766078179349,7.42621794,2841.5,2839.5,3.42178023]
[1766078179639,1.72444094,2842.8,2839.5,3.42178023]
[1766078179640,0.001,2842.8,2840.8,2.9574]
[1766078179808,0.08731794,2842.4,2840.9,0.638]
[1766078180132,0.08731794,2842.7,2841.1,2.9574]
[1766078180335,0.93216675,2843.3,2841.4,3.42178023]
[1766078180635,0.08731794,2842.9,2841.4,0.46438023]
[1766078180807,0.08731794,2843.2,2841.5,3.5944]
[1766078181006,0.42771794,2843.6,2841.6,3.42078023]
[1766078181249,0.08731794,2842.7,2841.2,3.8791571]
[1766078181538,0.08731794,2841.7,2840.6,0.638]
[1766078181706,0.08731794,2841.3,2839.5,2.9564]
[1766078181906,0.42771794,2841.3,2839.7,7.04299748]
[1766078182103,0.08731794,2841.6,2839.9,2.9564]
[1766078182334,0.08731794,2841.9,2840.1,2.9564]
[1766078182335,0.08731794,2841.7,2840.1,2.9564]
[1766078182539,0.08731794,2841.7,2840.2,0.637]
[1766078182540,0.08731794,2841.3,2840.2,0.637]
[1766078182740,0.08731794,2841.2,2840.3,0.637]
[1766078182947,0.08731794,2841.3,2839.9,7.04250148]
[1766078183166,0.08731794,2841.0,2839.9,0.70425015]
[1766078183449,0.08731794,2841.0,2840.0,0.637]
[1766078183859,0.08731794,2841.3,2840.1,2.9564]
[1766078184038,0.08731794,2841.7,2840.1,2.9564]
[1766078184223,0.3404,2842.8,2840.6,3.361904]
[1766078184429,0.08731794,2843.6,2841.1,0.86988423]
[1766078184657,0.08731794,2843.6,2841.3,3.42078023]
[1766078184658,0.08731794,2843.1,2841.3,3.42078023]
[1766078184833,0.08731794,2843.6,2841.4,0.637]
[1766078184834,0.08731794,2843.0,2841.4,0.637]
[1766078185031,0.08731794,2843.6,2841.6,2.9564]
[1766078185221,10.0,2844.4,2842.2,2.9564]